bitfinex-derivatives/quotes_BTCF0:USTF0_20251023
["timestamp","ask_amount","ask_price","bid_price","bid_amount"]
[1761214763247,0.6942232,109780.0,109770.0,0.90309]
[1761214763751,0.84225819,109780.0,109770.0,0.90309]
[1761214764255,0.77674998,109780.0,109770.0,0.90309]
[1761214764457,0.84225819,109780.0,109770.0,0.90309]
[1761214765550,0.68225819,109780.0,109770.0,0.90309]
[1761214765749,1.04225819,109780.0,109770.0,0.90309]
[1761214766457,1.04225819,109780.0,109770.0,0.95693]
[1761214769454,0.68225819,109780.0,109770.0,0.19613]
[1761214769656,1.74746519,109780.0,109770.0,0.19613]
[1761214769863,1.46754998,109780.0,109770.0,0.19613]
[1761214770459,1.10674998,109780.0,109770.0,0.19613]
[1761214770659,1.17231428,109780.0,109770.0,0.55693]
[1761214770960,1.17231428,109780.0,109770.0,0.19613]
[1761214771360,1.17231549,109780.0,109770.0,0.19613]
[1761214772053,1.17231549,109780.0,109770.0,0.55693]
[1761214772356,1.17231549,109780.0,109770.0,0.19613]
[1761214774465,1.1886302,109780.0,109770.0,0.19613]
[1761214774863,1.33666519,109780.0,109770.0,0.19613]
[1761214775561,1.1886302,109780.0,109770.0,0.19613]
[1761214776164,1.10674998,109780.0,109770.0,0.19613]
[1761214776659,1.25478497,109780.0,109770.0,0.19613]
[1761214777061,1.10674998,109780.0,109770.0,0.19613]
[1761214778259,1.50674998,109780.0,109770.0,0.17408]
[1761214778465,2.32558497,109780.0,109770.0,0.17408]
[1761214778665,2.32558497,109780.0,109770.0,0.15098]
[1761214778865,2.4402036,109780.0,109770.0,0.15098]
[1761214779669,2.1302036,109780.0,109770.0,0.15098]
[1761214779970,2.1302036,109780.0,109770.0,0.17222]
[1761214780569,2.1302036,109780.0,109770.0,0.19463]
[1761214781160,2.1302036,109780.0,109770.0,0.17222]
[1761214781668,1.98216861,109780.0,109770.0,0.19463]
[1761214782574,2.1302036,109780.0,109770.0,0.19463]
[1761214782866,1.7694036,109780.0,109770.0,0.19463]
[1761214784468,1.73676416,109780.0,109770.0,0.19463]
[1761214784663,1.44068727,109780.0,109770.0,0.19463]
[1761214787373,0.08197919,109780.0,109770.0,0.55543]
[1761214787568,0.69400931,109780.0,109770.0,0.55543]
[1761214788672,0.54598123,109780.0,109770.0,0.55543]
[1761214788873,0.69400931,109780.0,109770.0,0.55543]
[1761214789065,0.54598123,109780.0,109770.0,0.55543]
[1761214789261,0.69400931,109780.0,109770.0,0.55543]
[1761214789468,0.62842808,109780.0,109770.0,0.55543]
[1761214789667,0.85842808,109780.0,109770.0,0.55543]
[1761214790574,0.65842808,109780.0,109770.0,0.55543]
[1761214792173,0.72401022,109780.0,109770.0,0.55543]
[1761214798779,0.88401022,109780.0,109770.0,0.55543]
[1761214799283,1.11401022,109780.0,109770.0,0.55543]
[1761214799485,1.11401022,109780.0,109770.0,0.19463]
[1761214800280,1.11401022,109780.0,109770.0,0.55543]
[1761214800783,1.11401022,109780.0,109770.0,0.19463]
[1761214801983,1.46645616,109780.0,109770.0,0.19463]
[1761214802388,1.40040727,109780.0,109770.0,0.19463]
[1761214802885,1.13040727,109780.0,109770.0,0.19463]
[1761214804688,0.98237919,109780.0,109770.0,0.19463]
[1761214804886,1.13040727,109780.0,109770.0,0.19463]
[1761214810591,1.27843535,109780.0,109770.0,0.13819]
[1761214810786,2.08923535,109780.0,109770.0,0.13819]
[1761214811094,2.32923535,109780.0,109770.0,0.13819]
[1761214811296,2.32923535,109780.0,109770.0,0.08435]
[1761214811790,2.36187479,109780.0,109770.0,0.08435]
[1761214812492,2.36187479,109780.0,109750.0,0.4182]
[1761214812698,0.21359937,109760.0,109750.0,0.4182]
[1761214812995,1.32395937,109760.0,109750.0,0.4182]
[1761214814295,1.05395937,109760.0,109750.0,0.4182]
[1761214814695,1.05395937,109760.0,109750.0,0.4719]
[1761214815491,1.05395937,109760.0,109750.0,0.1111]
[1761214815696,1.41475937,109760.0,109750.0,0.1111]
[1761214815896,1.48636336,109760.0,109750.0,0.1111]
[1761214816192,1.12556336,109760.0,109750.0,0.1111]
[1761214816397,1.48636336,109760.0,109750.0,0.1111]
[1761214816597,1.12556336,109760.0,109750.0,0.1111]
[1761214816797,1.05395937,109760.0,109750.0,0.1111]
[1761214817098,1.41475937,109760.0,109750.0,0.1111]
[1761214817297,1.05395937,109760.0,109750.0,0.1111]
[1761214819092,0.90593129,109760.0,109750.0,0.1111]
[1761214819293,1.05395937,109760.0,109750.0,0.1111]
[1761214819597,1.12519892,109760.0,109750.0,0.1111]
[1761214820088,0.85519892,109760.0,109750.0,0.4719]
[1761214820289,0.97519892,109760.0,109750.0,0.4719]
[1761214820488,1.21519892,109760.0,109750.0,0.4719]
[1761214822296,1.21519892,109760.0,109750.0,0.1111]
[1761214824394,1.14962763,109760.0,109750.0,0.1111]
[1761214825500,1.00159955,109760.0,109750.0,0.1111]
[1761214825701,1.14962763,109760.0,109750.0,0.1111]
[1761214826496,1.2151099,109760.0,109750.0,0.1111]
[1761214827499,1.4751099,109760.0,109750.0,0.1111]
[1761214827800,1.4751099,109760.0,109750.0,0.11095]
[1761214830003,1.2151099,109760.0,109750.0,0.11095]
[1761214830306,1.2262499,109760.0,109750.0,0.07095]
[1761214830603,1.2262499,109760.0,109750.0,0.09425]
[1761214831604,1.2262499,109760.0,109750.0,0.07259]
[1761214831906,1.2762499,109760.0,109750.0,0.07259]
[1761214832207,1.2262499,109760.0,109750.0,0.07259]
[1761214832607,1.5262499,109760.0,109750.0,0.07259]
[1761214832796,1.5262499,109760.0,109740.0,0.08437]
[1761214832797,0.04278,109750.0,109740.0,0.08437]
[1761214832998,0.05392,109730.0,109720.0,0.41881937]
[1761214833198,1.1478672,109730.0,109720.0,0.41881937]
[1761214833708,1.08234808,109730.0,109720.0,0.41881937]
[1761214834208,1.14782666,109730.0,109720.0,0.41881937]
[1761214834409,1.08234808,109730.0,109720.0,0.41881937]
[1761214835209,1.08234808,109730.0,109720.0,0.05801937]
[1761214835410,1.08234808,109730.0,109720.0,0.04506937]
[1761214835710,1.08434808,109730.0,109720.0,0.04506937]
[1761214836009,1.08334808,109730.0,109720.0,0.04506937]
[1761214836200,1.39356266,109730.0,109720.0,0.04506937]
[1761214836603,1.36356266,109730.0,109720.0,0.04506937]
[1761214838007,0.93439458,109730.0,109720.0,0.05831937]
[1761214838212,0.562,109730.0,109720.0,0.96714745]
[1761214838409,0.32244,109730.0,109720.0,1.17991937]
[1761214838606,0.36522,109730.0,109720.0,1.17991937]
[1761214838811,0.51324808,109730.0,109720.0,0.77991937]
[1761214839211,0.51324808,109730.0,109720.0,0.77923887]
[1761214839410,0.51224808,109730.0,109720.0,0.77923887]
[1761214840214,0.51235732,109730.0,109720.0,0.77923887]
[1761214840912,0.51135732,109730.0,109720.0,0.77923887]
[1761214841114,0.51235732,109730.0,109720.0,0.77923887]
[1761214842713,0.51235732,109730.0,109720.0,0.8025326]
[1761214843308,0.51235732,109730.0,109720.0,0.77923887]
[1761214843708,0.52235732,109730.0,109720.0,0.77923887]
[1761214844109,0.78808732,109730.0,109720.0,0.77923887]
[1761214844303,0.37432924,109730.0,109720.0,0.77923887]
[1761214844509,1.11235732,109730.0,109720.0,0.77923887]
[1761214846716,1.2605906,109730.0,109720.0,0.77923887]
[1761214851524,1.26048136,109730.0,109720.0,0.41843887]
[1761214852324,0.96422,109730.0,109720.0,0.41843887]
[1761214852520,1.26048136,109730.0,109720.0,0.41843887]
[1761214853120,1.26056473,109730.0,109720.0,0.41843887]
[1761214853422,1.26048136,109730.0,109720.0,0.41843887]
[1761214855125,1.26057948,109730.0,109720.0,0.41843887]
[1761214855316,1.26058177,109730.0,109720.0,0.41843887]
[1761214855519,1.26057897,109730.0,109720.0,0.41843887]
[1761214855820,1.26052136,109730.0,109720.0,0.41843887]
[1761214858225,1.26063073,109730.0,109720.0,0.41843887]
[1761214861832,0.96436937,109730.0,109720.0,0.41843887]
[1761214862033,1.26063073,109730.0,109720.0,0.41843887]
[1761214866037,1.32617974,109730.0,109720.0,0.41843887]
[1761214869846,1.57617974,109730.0,109720.0,0.41843887]
[1761214870646,1.26063073,109730.0,109720.0,0.41843887]
[1761214871146,1.50063073,109730.0,109720.0,0.41843887]
[1761214871344,1.58256699,109730.0,109720.0,0.41843887]
[1761214872346,1.34256699,109730.0,109720.0,0.41843887]
[1761214873340,1.34256699,109730.0,109720.0,0.02272887]
[1761214873542,1.68245762,109730.0,109710.0,0.48668]
[1761214873848,0.42333248,109720.0,109710.0,0.48668]
[1761214874048,0.45333248,109720.0,109710.0,0.48668]
[1761214874650,0.43703261,109720.0,109710.0,0.48668]
[1761214874847,0.55516329,109720.0,109710.0,0.48668]
[1761214875151,1.4425183,109720.0,109710.0,0.08931]
[1761214875347,1.4425183,109720.0,109710.0,0.06671]
[1761214875348,1.36058204,109720.0,109710.0,0.06671]
[1761214875549,1.4425183,109720.0,109700.0,0.37860768]
[1761214875850,0.7274961,109710.0,109700.0,0.42452768]
[1761214876150,1.3474961,109710.0,109700.0,0.42452768]
[1761214878351,1.3484961,109710.0,109700.0,0.42452768]
[1761214880853,1.28288004,109710.0,109700.0,0.42452768]
[1761214881256,1.3484961,109710.0,109700.0,0.42452768]
[1761214881451,1.28288004,109710.0,109700.0,0.42452768]
[1761214881652,1.3484961,109710.0,109700.0,0.42452768]
[1761214882355,1.28288004,109710.0,109700.0,0.42452768]
[1761214883156,1.28288004,109710.0,109700.0,0.06372768]
[1761214883456,1.3484961,109710.0,109700.0,0.06372768]
[1761214884558,1.28288004,109710.0,109700.0,0.06372768]
[1761214885659,1.29450136,109710.0,109700.0,0.05047768]
[1761214885959,1.34450136,109710.0,109700.0,0.05047768]
[1761214886156,1.29450136,109710.0,109700.0,0.05047768]
[1761214887461,1.55450136,109710.0,109700.0,0.05047768]
[1761214888857,1.55461073,109710.0,109700.0,0.05047768]
[1761214889062,1.55457995,109710.0,109700.0,0.05047768]
[1761214889361,1.55450136,109710.0,109700.0,0.05047768]
[1761214889758,1.29450136,109710.0,109700.0,0.05047768]
[1761214890154,0.66279136,109710.0,109700.0,0.06364768]
[1761214890359,1.08279136,109710.0,109700.0,0.06364768]
[1761214891661,1.08279136,109710.0,109700.0,0.42444768]
[1761214892262,1.29279136,109710.0,109700.0,0.06364768]
[1761214893268,1.29289869,109710.0,109700.0,0.06364768]
[1761214893469,1.29279136,109710.0,109700.0,0.06364768]
[1761214893762,1.29286472,109710.0,109700.0,0.06364768]
[1761214893964,1.29285569,109710.0,109700.0,0.06364768]
[1761214894165,1.29289619,109710.0,109700.0,0.06364768]
[1761214894365,1.29279136,109710.0,109700.0,0.06364768]
[1761214894566,1.29287844,109710.0,109700.0,0.06364768]
[1761214894765,1.29290073,109710.0,109700.0,0.06364768]
[1761214894962,1.29279136,109710.0,109700.0,0.06364768]
[1761214897866,1.2928712,109710.0,109700.0,0.06364768]
[1761214898065,1.29279136,109710.0,109700.0,0.06364768]
[1761214898266,1.35847243,109710.0,109700.0,0.06364768]
[1761214898470,1.35851679,109710.0,109700.0,0.06364768]
[1761214898667,1.35851271,109710.0,109700.0,0.06364768]
[1761214898861,1.35850071,109710.0,109700.0,0.06364768]
[1761214899169,1.35840742,109710.0,109700.0,0.06364768]
[1761214903974,1.35851679,109710.0,109700.0,0.06364768]
[1761214904175,1.35840742,109710.0,109700.0,0.06364768]
[1761214904371,1.35851557,109710.0,109700.0,0.06364768]
[1761214904566,1.29279136,109710.0,109700.0,0.06364768]
[1761214904769,1.37472762,109710.0,109700.0,0.06364768]
[1761214907078,1.63472762,109710.0,109700.0,0.05047768]
[1761214907279,1.37472762,109710.0,109700.0,0.05047768]
[1761214907477,1.62472762,109710.0,109700.0,0.05047768]
[1761214908680,1.62495489,109710.0,109700.0,0.05047768]
[1761214908978,1.6248649,109710.0,109700.0,0.05047768]
[1761214912880,1.07846626,109710.0,109700.0,0.06312768]
[1761214913079,1.00666558,109710.0,109700.0,0.06312768]
[1761214913774,1.00675595,109710.0,109700.0,0.06312768]
[1761214913972,1.00666558,109710.0,109700.0,0.06312768]
[1761214914574,1.07233367,109710.0,109700.0,0.06312768]
[1761214914774,0.99039741,109710.0,109700.0,0.06312768]
[1761214915182,0.72050279,109710.0,109700.0,0.82392768]
[1761214916883,0.57230347,109710.0,109700.0,0.82392768]
[1761214917085,0.72050279,109710.0,109700.0,0.82392768]
[1761214921500,0.00106538,109710.0,109700.0,1.08671872]
[1761214921701,0.04523,109720.0,109710.0,0.1493321]
[1761214922003,0.1200453,109740.0,109730.0,0.0582]
[1761214922202,0.79872462,109740.0,109730.0,0.419]
[1761214923097,1.01872462,109740.0,109730.0,0.419]
[1761214923402,1.01972462,109740.0,109730.0,0.419]
[1761214924202,0.95405653,109740.0,109730.0,0.419]
[1761214924691,1.02072462,109740.0,109730.0,0.419]
[1761214925393,0.6525253,109740.0,109730.0,0.419]
[1761214925696,0.04727399,109740.0,109730.0,0.819]
[1761214925904,0.36775399,109740.0,109730.0,0.819]
[1761214926108,0.51595331,109740.0,109730.0,0.819]
[1761214926904,0.51595331,109740.0,109730.0,0.419]
[1761214928003,0.32252399,109740.0,109730.0,0.819]
[1761214928499,0.34548399,109740.0,109730.0,0.819]
[1761214928895,0.36775399,109740.0,109730.0,0.819]
[1761214930208,0.36775399,109740.0,109730.0,1.1798]
[1761214931204,0.51595331,109740.0,109730.0,1.1798]
[1761214931811,0.36775399,109740.0,109730.0,1.1798]
[1761214932012,0.51595331,109740.0,109730.0,1.1798]
[1761214935909,0.66415263,109740.0,109730.0,0.7798]
[1761214936109,0.51595331,109740.0,109730.0,0.7798]
[1761214940322,0.51595331,109740.0,109730.0,0.419]
[1761214941723,0.51495331,109740.0,109730.0,0.419]
[1761214941922,0.51595331,109740.0,109730.0,0.419]
[1761214946224,0.69415263,109740.0,109730.0,0.419]
[1761214952830,0.39775399,109740.0,109730.0,0.419]
[1761214953030,0.69415263,109740.0,109730.0,0.419]
[1761214954630,0.69415263,109740.0,109730.0,0.44248648]
[1761214955928,1.52062072,109740.0,109720.0,0.3608]
[1761214956131,1.52062072,109740.0,109710.0,0.39794283]
[1761214956132,0.77850072,109730.0,109710.0,0.05514]
[1761214956332,0.51248331,109720.0,109710.0,0.05514]
[1761214956530,1.15248331,109720.0,109710.0,0.05514]
[1761214957438,1.41821331,109720.0,109710.0,0.04249]
[1761214957733,1.15821331,109720.0,109710.0,0.04249]
[1761214958637,1.15821331,109720.0,109710.0,0.02241]
[1761214958935,1.81816932,109720.0,109710.0,0.04349]
[1761214959832,1.81821331,109720.0,109710.0,0.04349]
[1761214960136,1.81816932,109720.0,109710.0,0.04349]
[1761214961333,1.55816932,109720.0,109710.0,0.04349]
[1761214961734,1.55821331,109720.0,109710.0,0.04349]
[1761214961939,1.55816932,109720.0,109710.0,0.04349]
[1761214963431,1.55243932,109720.0,109710.0,0.0562]
[1761214963641,1.19243932,109720.0,109710.0,0.0562]
[1761214963830,1.38243932,109720.0,109710.0,0.0562]
[1761214967642,1.38248331,109720.0,109710.0,0.0562]
[1761214968036,1.38243932,109720.0,109710.0,0.0562]
[1761214968744,1.28057572,109720.0,109710.0,0.0562]
[1761214969134,1.44057572,109720.0,109710.0,0.0562]
[1761214969436,1.44061971,109720.0,109710.0,0.0562]
[1761214969631,1.44061971,109720.0,109710.0,0.0607]
[1761214969632,1.44057572,109720.0,109710.0,0.0607]
[1761214970536,0.69061971,109720.0,109710.0,0.4215]
[1761214970733,0.66061971,109720.0,109710.0,0.4215]
[1761214972142,0.19209185,109720.0,109710.0,0.8215]
[1761214972342,0.04392399,109720.0,109710.0,0.8215]
[1761214972547,0.51249185,109720.0,109710.0,0.8404247]
[1761214972946,0.51249185,109720.0,109710.0,0.817]
[1761214973951,0.51249185,109720.0,109710.0,0.9081327]
[1761214974250,0.51249185,109720.0,109710.0,0.817]
[1761214974442,0.66065971,109720.0,109710.0,0.817]
[1761214984359,0.66065971,109720.0,109710.0,0.84037647]
[1761214986761,0.66065971,109720.0,109710.0,0.44037647]
[1761214993469,0.34025971,109720.0,109710.0,0.44037647]
[1761214993670,0.51245185,109720.0,109710.0,0.44037647]
[1761214993869,0.51245185,109720.0,109710.0,0.53150917]
[1761214994072,0.66061971,109720.0,109710.0,0.5315066]
[1761214994465,0.51245185,109720.0,109710.0,0.5315066]
[1761214994665,0.51245185,109720.0,109710.0,0.5081327]
[1761214995563,0.51245185,109720.0,109710.0,0.65630056]
[1761214995769,0.36428399,109720.0,109710.0,0.65630056]
[1761214995970,0.51245185,109720.0,109710.0,0.65630056]
[1761214998663,0.66061971,109720.0,109710.0,0.417]
[1761215004776,0.66061971,109720.0,109710.0,0.44039863]
[1761215011783,0.36428399,109720.0,109710.0,0.44039863]
[1761215011982,0.66061971,109720.0,109710.0,0.44039863]
[1761215013783,0.36428399,109720.0,109710.0,0.44039863]
[1761215013985,0.66061971,109720.0,109710.0,0.44039863]
[1761215014983,0.36428399,109720.0,109710.0,0.44039863]
[1761215015282,0.66061971,109720.0,109710.0,0.44039863]
[1761215016081,0.36428399,109720.0,109710.0,0.44039863]
[1761215016282,0.66061971,109720.0,109710.0,0.44039863]
[1761215017184,0.36428399,109720.0,109710.0,0.44039863]
[1761215017483,0.66061971,109720.0,109710.0,0.44039863]
[1761215018382,0.36428399,109720.0,109710.0,0.44039863]
[1761215018684,0.66061971,109720.0,109710.0,0.44039863]
[1761215030690,0.51243019,109720.0,109710.0,0.44039863]
[1761215032185,0.51243019,109720.0,109710.0,0.417]
[1761215032391,0.57809828,109720.0,109710.0,0.417]
[1761215033094,0.51243019,109720.0,109710.0,0.417]
[1761215034694,0.57809828,109720.0,109710.0,0.417]
[1761215038302,0.51243019,109720.0,109710.0,0.417]
[1761215041601,0.51243019,109720.0,109710.0,0.457]
[1761215043702,0.36428399,109720.0,109710.0,0.457]
[1761215043907,0.51243019,109720.0,109710.0,0.457]
[1761215044709,0.51243019,109720.0,109710.0,0.48026503]
[1761215047205,0.51243019,109720.0,109710.0,0.457]
[1761215050814,0.51243019,109720.0,109710.0,0.4018]
[1761215051009,0.01114,109710.0,109700.0,0.38806768]
[1761215051209,0.46825448,109710.0,109700.0,0.38806768]
[1761215051411,0.41825448,109710.0,109700.0,0.38806768]
[1761215051610,0.96825448,109710.0,109700.0,0.38806768]
[1761215051810,0.96825448,109710.0,109700.0,0.41061768]
[1761215052314,0.95711448,109710.0,109700.0,0.42511768]
[1761215052711,0.95711448,109710.0,109700.0,0.42411768]
[1761215052910,0.95911448,109710.0,109700.0,0.42411768]
[1761215053111,0.81096828,109710.0,109700.0,0.42411768]
[1761215053313,0.39196828,109710.0,109700.0,0.42411768]
[1761215054319,0.40127809,109710.0,109700.0,0.42411768]
[1761215054515,0.25313189,109710.0,109700.0,0.42411768]
[1761215054814,0.02457399,109710.0,109700.0,0.42411768]
[1761215055012,0.17372019,109710.0,109700.0,0.42411768]
[1761215055214,0.19430019,109710.0,109700.0,0.42411768]
[1761215055514,0.19630019,109710.0,109700.0,0.42411768]
[1761215055916,0.20552535,109710.0,109700.0,0.42411768]
[1761215056114,0.35367155,109710.0,109700.0,0.42411768]
[1761215056313,0.78167155,109710.0,109700.0,0.42411768]
[1761215056520,0.78267155,109710.0,109700.0,0.42411768]
[1761215056719,0.94267155,109710.0,109700.0,0.42411768]
[1761215056920,1.00833964,109710.0,109700.0,0.42411768]
[1761215057422,0.94267155,109710.0,109700.0,0.42411768]
[1761215058421,0.94367155,109710.0,109700.0,0.42411768]
[1761215060622,1.00933964,109710.0,109700.0,0.42411768]
[1761215064724,0.94367155,109710.0,109700.0,0.42411768]
[1761215065321,0.79552535,109710.0,109700.0,0.42411768]
[1761215065522,0.46552535,109710.0,109700.0,0.42411768]
[1761215066322,0.51468087,109710.0,109700.0,0.42411768]
[1761215068321,0.32468087,109710.0,109700.0,0.42411768]
[1761215069719,0.99282707,109710.0,109700.0,0.06374768]
[1761215070022,1.19367155,109710.0,109700.0,0.06374768]
[1761215070321,0.05615,109690.0,109670.0,0.42001]
[1761215070526,0.66109639,109680.0,109670.0,0.44264683]
[1761215070726,0.51295019,109680.0,109670.0,0.44264683]
[1761215071427,0.66109639,109680.0,109670.0,0.42001]
[1761215072324,0.75026506,109680.0,109670.0,0.42001]
[1761215072525,1.58026506,109680.0,109670.0,0.42001]
[1761215072825,1.53109639,109680.0,109670.0,0.42001]
[1761215073029,1.5421924,109680.0,109670.0,0.04571]
[1761215073423,1.2310524,109680.0,109670.0,0.05964]
[1761215073928,1.2431924,109680.0,109670.0,0.04571]
[1761215074322,1.6431924,109680.0,109660.0,0.42499934]
[1761215074527,0.24172212,109670.0,109660.0,0.42499934]
[1761215074730,0.6525862,109670.0,109660.0,0.42499934]
[1761215075527,0.65263019,109670.0,109660.0,0.42499934]
[1761215075826,0.6525862,109670.0,109660.0,0.42499934]
[1761215076120,0.65263019,109670.0,109660.0,0.42499934]
[1761215076323,0.6525862,109670.0,109660.0,0.42499934]
[1761215076721,0.65263019,109670.0,109660.0,0.42499934]
[1761215076921,0.6535862,109670.0,109660.0,0.42499934]
[1761215077116,0.6535862,109670.0,109660.0,0.06419934]
[1761215079024,0.6535862,109670.0,109660.0,0.05026934]
[1761215080917,0.7135862,109670.0,109660.0,0.05026934]
[1761215081434,0.71363019,109670.0,109660.0,0.05026934]
[1761215081731,0.7135862,109670.0,109660.0,0.05026934]
[1761215081933,0.6535862,109670.0,109660.0,0.05026934]
[1761215083126,1.0143862,109670.0,109660.0,0.05026934]
[1761215083328,1.4725324,109670.0,109660.0,0.05026934]
[1761215083529,1.3243862,109670.0,109660.0,0.02734934]
[1761215083726,1.9243862,109670.0,109660.0,0.02734934]
[1761215084030,1.9243862,109670.0,109660.0,0.05026934]
[1761215084227,1.6643862,109670.0,109660.0,0.05026934]
[1761215084428,1.9043862,109670.0,109660.0,0.05026934]
[1761215084832,1.2535862,109670.0,109660.0,0.05026934]
[1761215085228,1.6143862,109670.0,109660.0,0.05026934]
[1761215086230,1.2535862,109670.0,109660.0,0.05026934]
[1761215087135,1.25363019,109670.0,109660.0,0.05026934]
[1761215087632,1.2535862,109670.0,109660.0,0.05026934]
[1761215089831,1.0143862,109670.0,109660.0,0.05026934]
[1761215090027,1.0643862,109670.0,109660.0,0.00455934]
[1761215090336,1.2543862,109670.0,109660.0,0.02734934]
[1761215090534,1.0143862,109670.0,109660.0,0.05026934]
[1761215090733,1.16289582,109670.0,109660.0,0.05026934]
[1761215091239,1.40289582,109670.0,109660.0,0.05026934]
[1761215091630,1.40293981,109670.0,109660.0,0.05026934]
[1761215091935,1.04209582,109670.0,109660.0,0.05026934]
[1761215092136,0.80209582,109670.0,109660.0,0.05026934]
[1761215092335,0.85118775,109670.0,109660.0,0.05026934]
[1761215092832,1.21198775,109670.0,109660.0,0.05026934]
[1761215093037,1.21203174,109670.0,109660.0,0.05026934]
[1761215093432,1.21198775,109670.0,109660.0,0.05026934]
[1761215095339,0.80209582,109670.0,109660.0,0.05026934]
[1761215095540,1.21289582,109670.0,109660.0,0.05026934]
[1761215095740,1.16289582,109670.0,109660.0,0.05026934]
[1761215096247,1.21198775,109670.0,109660.0,0.05026934]
[1761215096541,0.85118775,109670.0,109660.0,0.05026934]
[1761215096846,1.21198775,109670.0,109660.0,0.05026934]
[1761215097344,1.21203174,109670.0,109660.0,0.05026934]
[1761215097548,1.21198775,109670.0,109660.0,0.05026934]
[1761215098432,1.26198775,109670.0,109660.0,0.05026934]
[1761215099038,1.36031566,109670.0,109660.0,0.02734934]
[1761215099342,1.68031566,109670.0,109660.0,0.00455934]
[1761215100456,1.41031566,109670.0,109660.0,0.00455934]
[1761215100746,1.65031566,109670.0,109660.0,0.00455934]
[1761215101537,1.60122373,109670.0,109660.0,0.00455934]
[1761215101847,1.60122373,109670.0,109660.0,0.02781934]
[1761215102047,1.31122373,109670.0,109660.0,0.02781934]
[1761215102249,1.36122373,109670.0,109660.0,0.02781934]
[1761215102550,1.36122373,109670.0,109660.0,0.05114934]
[1761215102847,1.21289582,109670.0,109660.0,0.05114934]
[1761215103035,1.2786079,109670.0,109660.0,0.05114934]
[1761215103945,1.27856391,109670.0,109660.0,0.05114934]
[1761215104550,1.42689182,109670.0,109660.0,0.05114934]
[1761215104940,0.93190809,109670.0,109660.0,0.05114934]
[1761215105142,1.22856391,109670.0,109660.0,0.05114934]
[1761215107254,1.22856391,109670.0,109660.0,0.06494934]
[1761215108154,1.2286079,109670.0,109660.0,0.06494934]
[1761215108354,1.2286079,109670.0,109660.0,0.05114934]
[1761215108557,1.22856391,109670.0,109660.0,0.05114934]
[1761215109447,1.22856391,109670.0,109660.0,0.06466064]
[1761215112848,1.22856391,109670.0,109660.0,0.04133064]
[1761215113053,1.22856391,109670.0,109660.0,0.06466064]
[1761215113450,1.2286079,109670.0,109660.0,0.06466064]
[1761215113757,1.22856391,109670.0,109660.0,0.06466064]
[1761215116161,0.93190809,109670.0,109660.0,0.07846064]
[1761215116344,1.22856391,109670.0,109660.0,0.07846064]
[1761215116549,1.22856391,109670.0,109660.0,0.06466064]
[1761215117155,1.2286079,109670.0,109660.0,0.06466064]
[1761215117457,1.22856391,109670.0,109660.0,0.06466064]
[1761215119256,1.2286079,109670.0,109660.0,0.01807064]
[1761215119559,1.2286079,109670.0,109660.0,0.04133064]
[1761215119560,1.48856391,109670.0,109660.0,0.04133064]
[1761215119853,1.4886079,109670.0,109660.0,0.04133064]
[1761215120248,1.48856391,109670.0,109660.0,0.04133064]
[1761215121259,1.48856391,109670.0,109660.0,0.06466064]
[1761215121660,1.42289582,109670.0,109660.0,0.06466064]
[1761215123464,1.21289582,109670.0,109660.0,0.06466064]
[1761215124267,1.27859033,109670.0,109660.0,0.06466064]
[1761215124567,1.27863432,109670.0,109660.0,0.06466064]
[1761215124863,1.21289582,109670.0,109660.0,0.06466064]
[1761215125363,1.16289582,109670.0,109660.0,0.07855064]
[1761215125554,1.21289582,109670.0,109660.0,0.06466064]
[1761215125758,1.47289582,109670.0,109660.0,0.08725021]
[1761215128070,1.45289582,109670.0,109660.0,0.06392021]
[1761215128569,1.64122373,109670.0,109660.0,0.04066021]
[1761215129173,1.64122373,109670.0,109660.0,0.04070295]
[1761215129668,1.70691741,109670.0,109660.0,0.01807064]
[1761215130261,1.42691741,109670.0,109660.0,0.01807064]
[1761215130468,1.44320398,109670.0,109660.0,0.01807064]
[1761215131171,1.67315999,109670.0,109660.0,0.01807064]
[1761215132267,1.39315999,109670.0,109660.0,0.03927064]
[1761215132470,1.67315999,109670.0,109660.0,0.03927064]
[1761215133975,1.29483208,109670.0,109660.0,0.06161064]
[1761215134168,1.21289582,109670.0,109660.0,0.06161064]
[1761215134363,1.16289582,109670.0,109660.0,0.06161064]
[1761215134568,1.21289582,109670.0,109660.0,0.06161064]
[1761215134770,1.27863165,109670.0,109660.0,0.06161064]
[1761215134967,1.27858766,109670.0,109660.0,0.06161064]
[1761215135272,1.42691557,109670.0,109660.0,0.06161064]
[1761215135674,1.27858766,109670.0,109660.0,0.06161064]
[1761215136873,1.63122373,109670.0,109660.0,0.04070339]
[1761215137076,1.63122373,109670.0,109660.0,0.01807064]
[1761215137978,1.63122373,109670.0,109660.0,0.03927064]
[1761215138278,1.63122373,109670.0,109660.0,0.01807064]
[1761215138484,1.69691557,109670.0,109660.0,0.01807064]
[1761215140269,1.69695956,109670.0,109660.0,0.01807064]
[1761215140578,1.69691557,109670.0,109660.0,0.06161064]
[1761215141576,1.69691557,109670.0,109660.0,0.03927064]
[1761215141776,1.69691557,109670.0,109660.0,0.01807064]
[1761215142078,1.63122373,109670.0,109660.0,0.01807064]
[1761215142275,1.71315999,109670.0,109660.0,0.01807064]
[1761215142878,0.00573,109660.0,109650.0,0.00458931]
[1761215143082,2.09652373,109660.0,109630.0,0.37473]
[1761215143276,0.48386582,109650.0,109640.0,0.0212]
[1761215143475,0.05575,109640.0,109630.0,0.41827]
[1761215143670,1.01179043,109640.0,109630.0,0.40434]
[1761215143874,1.01179043,109640.0,109630.0,0.04354]
[1761215144076,1.01187998,109640.0,109630.0,0.04354]
[1761215144281,1.4403656,109640.0,109630.0,0.06616533]
[1761215144881,1.39113373,109640.0,109630.0,0.06616533]
[1761215145080,1.39213373,109640.0,109630.0,0.06616533]
[1761215145789,1.39213373,109640.0,109630.0,0.07894533]
[1761215146086,1.40128397,109640.0,109630.0,0.07894533]
[1761215146286,1.47372483,109640.0,109630.0,0.07894533]
[1761215146499,0.93255606,109640.0,109630.0,0.07894533]
[1761215146693,0.93255606,109640.0,109630.0,0.43974533]
[1761215146694,0.89190882,109640.0,109630.0,0.43974533]
[1761215150191,1.11190882,109640.0,109630.0,0.07894533]
[1761215150484,1.11190882,109640.0,109630.0,0.43974533]
[1761215152388,1.11190882,109640.0,109630.0,0.07894533]
[1761215152888,0.96364087,109640.0,109630.0,0.07894533]
[1761215153781,0.96364087,109640.0,109630.0,0.05632]
[1761215154985,0.96364087,109640.0,109630.0,0.07005147]
[1761215156591,1.12364087,109640.0,109630.0,0.07005147]
[1761215157992,1.17287274,109640.0,109630.0,0.07005147]
[1761215158693,1.03287274,109640.0,109630.0,0.07005147]
[1761215158993,0.88448487,109640.0,109630.0,0.07005147]
[1761215159194,0.85287274,109640.0,109630.0,0.07005147]
[1761215159392,0.85287274,109640.0,109630.0,0.07005049]
[1761215159591,0.85291274,109640.0,109630.0,0.07005049]